Cogmind - Beta 11.1 @@@ ROGUE MODE // 2022.05.10 @ 06:58:17 Player: Haldron Result: Self-destructed Performance ------------- Evolutions (2) 1000 Regions Visited (5) 1000 Robots Destroyed (23) 115 Value Destroyed (258) 258 Prototype IDs (0) 0 Alien Tech Used (0) 0 Bonus (300) 300 TOTAL SCORE: 2673 Bonus ------- Aligned with FarCom 300 Cogmind --------- Core Integrity 550/550 Matter 290/300 Energy 125/125 System Corruption 0% Temperature Cool (0) Movement Rolling (150) Ox4 Location -8/Materials Parts ------- > --- POWER (1) -------- Light Ion Engine > --- PROPULSION (2) --- Light Treads Armored Wheel > --- UTILITY (6) ------ High-capacity Storage Unit Signal Interpreter Improved Terrain Scanner Seismic Detector > --- WEAPON (2) ------- Grenade Launcher Mace > --- INVENTORY (20) --- Light Ion Engine Light Treads Light Treads Armored Wheel Armored Wheel Armored Wheel VTOL Module High-capacity Battery (250) Seismic Detector EM Pulse Gun Medium Laser Ion Cannon Datajack Mace Katana Deploy-a-Sentry Deploy-a-Sentry Deploy-a-Sentry Peak State ------------ > --- POWER ------------ Light Ion Engine > --- PROPULSION ------- Light Treads Armored Wheel > --- UTILITY ---------- High-capacity Storage Unit Signal Interpreter Improved Terrain Scanner Seismic Detector > --- WEAPON ----------- Grenade Launcher Mace > --- INVENTORY -------- Light Ion Engine Light Treads Light Treads Armored Wheel Armored Wheel Armored Wheel VTOL Module High-capacity Battery Seismic Detector EM Pulse Gun Medium Laser Ion Cannon Datajack Mace Deploy-a-Sentry Deploy-a-Sentry Deploy-a-Sentry [Rating: 17] Favorites ----------- Power Light Ion Engine Engine Light Ion Engine Propulsion Light Treads Treads Light Treads Wheel Armored Wheel Utility High-capacity Storage Unit Device Improved Terrain Scanner Storage High-capacity Storage Unit Processor Signal Interpreter Weapon Mace Energy Gun Medium Laser Launcher Grenade Launcher Impact Weapon Mace Build | -11 -10 -10 -10 -9 -8 ------- Run | Scr Mat Min Exi Min Mat Slots Evolved 4 | . . . . . 4 Power . | . . . . . . Propulsion . | . . . . . . Utility 4 | . . . . . 4 Weapon . | . . . . . . Parts Attached 21 | 8 5 2 2 1 3 Power 2 | 1 . . . . 1 Engine 2 | 1 . . . . 1 Core . | . . . . . . Reactor . | . . . . . . Propulsion 3 | 2 1 . . . . Treads 1 | 1 . . . . . Leg . | . . . . . . Wheel 2 | 1 1 . . . . Hover . | . . . . . . Flight . | . . . . . . Utility 10 | 2 2 1 2 1 2 Device 4 | 1 . . 1 . 2 Storage 4 | 1 2 . 1 . . Processor 2 | . . 1 . 1 . Hackware . | . . . . . . Protection . | . . . . . . Artifact . | . . . . . . Weapon 6 | 3 2 1 . . . Energy Gun 4 | 3 1 . . . . Energy Cannon . | . . . . . . Ballistic Gun . | . . . . . . Ballistic Cannon . | . . . . . . Launcher 1 | . . 1 . . . Special Weapon . | . . . . . . Impact Weapon 1 | . 1 . . . . Slashing Weapon . | . . . . . . Piercing Weapon . | . . . . . . Special Melee Weapon . | . . . . . . Unidentified Prototypes . | . . . . . . Parts Lost . | . . . . . . Power . | . . . . . . Propulsion . | . . . . . . Utility . | . . . . . . Weapon . | . . . . . . Highest Loss Streak . | . . . . . . To Critical Strikes . | . . . . . . Average Slot Usage (%) 96 | . 100 100 100 100 77 Engine 13 | . 14 14 14 14 9 Treads 13 | . 14 14 14 14 9 Wheel 13 | . 14 14 14 14 9 Device 10 | . 14 14 10 5 14 Storage 13 | . 14 14 14 14 9 Processor 5 | . . . 3 8 9 Energy Gun 2 | . 15 3 . . . Launcher 10 | . . 10 14 14 9 Impact Weapon 12 | . 12 14 14 14 9 Naked Turns . | . . . . . . Heaviest Build 50 | 13 28 29 49 49 50 Greatest Support 20 | 20 12 12 12 12 12 Greatest Overweight (x) 4 | 1 2 2 4 4 4 Average Overweight (x) 2 | . 1 2 2 3 3 Largest Inventory Capacity 20 | 8 15 15 20 20 20 Average Capacity 16 | 7 12 15 16 20 20 Most Carried 20 | 7 15 15 16 18 20 Average Carried 14 | 5 11 15 15 17 17 Final Capacity 20 | 8 15 15 20 20 20 Final Carried 18 | 6 15 15 16 18 18 Class Distribution -------------------- 77% | Mutant 22% | Assassin Dominant Class ---------------- Mutant | -10/Materials Mutant | -10/Mines Mutant | -10/Exiles Mutant | -9/Mines Assassin | -8/Materials Resources | -11 -10 -10 -10 -9 -8 ----------- Run | Scr Mat Min Exi Min Mat Matter Collected 430 | 280 50 10 20 50 20 Remotely . | . . . . . . Salvage Created 519 | 198 144 . . 157 20 Parts 40 | 15 5 . . 16 4 Haulers Intercepted . | . . . . . . Recyclers Shooed 1 | . . . . 1 . Parts Field Recycled . | . . . . . . Retrieved Matter . | . . . . . . Parts Self-Destructed . | . . . . . . Prevented . | . . . . . . Kills | -11 -10 -10 -10 -9 -8 ------- Run | Scr Mat Min Exi Min Mat Combat Hostiles Destroyed 7 | . 3 . . 4 . Melee 1 | . 1 . . . . AOE 4 | . . . . 4 . Classes Destroyed 7 | 3 2 . . 2 . Worker 3 | 2 . . . 1 . Builder 2 | . . . . 1 1 Tunneler 7 | 5 . . . 2 . Recycler 2 | 1 . . . 1 . Watcher 2 | . 2 . . . . Swarmer 4 | . . . . 4 . Grunt 3 | . 3 . . . . Best Kill Streak 4 | 3 2 . . 4 1 Combat Bots Only 4 | . 2 . . 4 . Max Kills in Single Turn 2 | 1 1 . . 2 1 Gunslinging . | . . . . . . Exploded 2 | . . . . 2 . Melee 1 | . 1 . . . . Uniques/NPCs Destroyed . | . . . . . . Combat | -11 -10 -10 -10 -9 -8 -------- Run | Scr Mat Min Exi Min Mat Damage Taken 187 | . 75 . . 94 18 Core 10 | . 10 . . . . Absorbed by Shields . | . . . . . . Core Remaining (%) 98 | 100 . . . 96 . Volleys Fired 65 | 60 2 . . 3 . Largest 1 | 1 1 . . 1 . Hottest 50 | 50 50 . . 30 . Shots Fired 65 | 60 2 . . 3 . Gun 62 | 60 2 . . . . Cannon . | . . . . . . Launcher 3 | . . . . 3 . Special . | . . . . . . Kinetic . | . . . . . . Thermal 62 | 60 2 . . . . Explosive 3 | . . . . 3 . Electromagnetic . | . . . . . . Robot Hit Streak 6 | 5 6 . . 1 . Robot Miss Streak 7 | 7 . . . 1 . Penetration Max . | . . . . . . Secondary Targets . | . . . . . . Shots Hit Robots 41 | 23 8 . . 7 3 Core Hits 21 | 9 3 . . 8 1 Critical Kills 1 | . 1 . . . . Critical Parts Destroyed 1 | . 1 . . . . Critical Strikes 2 | . 2 . . . . Smash 2 | . 2 . . . . Melee Attacks 16 | . 7 . . 6 3 Impact 16 | . 7 . . 6 3 Slashing . | . . . . . . Piercing . | . . . . . . Sneak Attacks 9 | . . . . 6 3 Combat Hostiles . | . . . . . . Follow-up Attacks . | . . . . . . Damage Inflicted 1369 | 313 260 . . 654 142 Guns 339 | 313 26 . . . . Cannons . | . . . . . . Explosions 235 | . . . . 235 . Melee 795 | . 234 . . 419 142 Ramming . | . . . . . . Kinetic . | . . . . . . Thermal 339 | 313 26 . . . . Explosive 235 | . . . . 235 . Electromagnetic . | . . . . . . Impact 795 | . 234 . . 419 142 Slashing . | . . . . . . Piercing . | . . . . . . Highest Corruption . | . . . . . . Average Corruption . | . . . . . . Corruption Purged . | . . . . . . Corruption Blocked . | . . . . . . Overload Shots . | . . . . . . Overflow Damage 153 | . 78 . . 75 . Projectiles . | . . . . . . Explosions . | . . . . . . Melee 153 | . 78 . . 75 . Knockbacks 4 | . 2 . . 2 . Impact 4 | . 2 . . 2 . Kinetic . | . . . . . . Secondary . | . . . . . . Self-Inflicted Damage 40 | . . . . 40 . Shots 1 | . . . . 1 . Rammed . | . . . . . . Targets Rammed . | . . . . . . Kicked . | . . . . . . Crushed . | . . . . . . Highest Temperature 10 | . 10 . . . . Average Temperature 7 | . 7 . . . . Received Heat Transfer 42 | . 42 . . . . Siege Activations . | . . . . . . Robots Corrupted . | . . . . . . Combat Hostiles . | . . . . . . Parts Fried 5 | . 1 . . 4 . Impact Corruptions 6 | . 3 . . 3 . Robots Melted . | . . . . . . Combat Hostiles . | . . . . . . Parts Melted 1 | 1 . . . . . Heat Transferred 999 | 925 74 . . . . Parts Sabotaged . | . . . . . . Parts Stolen . | . . . . . . Parts Stripped . | . . . . . . Power Chain Reactions . | . . . . . . Missiles Intercepted . | . . . . . . Alert | -11 -10 -10 -10 -9 -8 ------- Run | Scr Mat Min Exi Min Mat Peak Influence 206 | 40 206 79 . 122 21 Initial 79 | . 26 79 . . 1 Average 44 | 17 91 79 . 43 1 Maximum Alert Level 1 | . 1 . . . . Low Security (%) 98 | 100 89 100 . 100 100 Level 1 1 | . 10 . . . . Level 2 . | . . . . . . Level 3 . | . . . . . . Level 4 . | . . . . . . Level 5 . | . . . . . . High Security . | . . . . . . Max Security . | . . . . . . Squads Dispatched 3 | . 3 . . . . Investigation 2 | . 2 . . . . Extermination . | . . . . . . Reinforcement 1 | . 1 . . . . Assault . | . . . . . . Garrison . | . . . . . . Intercept . | . . . . . . Searches Triggered . | . . . . . . Construction Impeded . | . . . . . . Haulers Reinforced . | . . . . . . Active Scanning Responses . | . . . . . . Cargo Convoy Interrupts . | . . . . . . Stealth | -11 -10 -10 -10 -9 -8 --------- Run | Scr Mat Min Exi Min Mat Distress Signals 2 | . . . . . 2 Communications Jammed . | . . . . . . Distress Signals . | . . . . . . Times Spotted 15 | . 8 . . 4 3 Peak Tracking Total 7 | . 3 . . 4 7 Tactical Retreats 1 | . 1 . . . . Traps | -11 -10 -10 -10 -9 -8 ------- Run | Scr Mat Min Exi Min Mat Traps Triggered 2 | . 2 . . . . Indirectly . | . . . . . . Trap Hack Attempts . | . . . . . . Triggered . | . . . . . . Disarmed . | . . . . . . Reprogrammed . | . . . . . . Reused . | . . . . . . Traps Extracted . | . . . . . . Installed . | . . . . . . Triggered 1 | . . . . 1 . Machines | -11 -10 -10 -10 -9 -8 ---------- Run | Scr Mat Min Exi Min Mat Machines Disabled 1 | . 1 . . . . Max in Single Turn 1 | . 1 . . . . Machines Sabotaged . | . . . . . . Garrisons Compromised . | . . . . . . Overloaded Fab Kills . | . . . . . . Hacking | -11 -10 -10 -10 -9 -8 --------- Run | Scr Mat Min Exi Min Mat Machines Accessed 4 | . 3 . . . 1 Terminals 4 | . 3 . . . 1 Fabricators . | . . . . . . Repair Stations . | . . . . . . Recycling Units . | . . . . . . Scanalyzers . | . . . . . . Garrison Access . | . . . . . . Total Hacks 11 | . 8 . . . 3 Successful 4 | . 3 . . . 1 Failed 7 | . 5 . . . 2 Catastrophic 1 | . 1 . . . . Database Lockouts . | . . . . . . Manual 10 | . 6 . 1 . 3 Terminals 11 | . 8 . . . 3 Fabricators . | . . . . . . Repair Stations . | . . . . . . Recycling Units . | . . . . . . Scanalyzers . | . . . . . . Garrison Access . | . . . . . . Terminal Hacks 2 | . 2 . . . . Terminal Index 1 | . 1 . . . . Zone Layout 1 | . 1 . . . . Fabricator Hacks . | . . . . . . Repair Station Hacks . | . . . . . . Recycling Unit Hacks . | . . . . . . Scanalyzer . | . . . . . . Garrison Access Hacks . | . . . . . . Unauthorized Hacks 2 | . 1 . . . 1 Terminals 2 | . 1 . . . 1 Operators 2 | . 1 . . . 1 Fabricators . | . . . . . . Repair Stations . | . . . . . . Recycling Units . | . . . . . . Scanalyzers . | . . . . . . Garrison Access . | . . . . . . Data Cores Recovered . | . . . . . . Used . | . . . . . . Hacking Detections 4 | . 3 . . . 1 Full Trace Events 1 | . 1 . . . . Feedback Events . | . . . . . . Feedback Blocked . | . . . . . . Robot Schematics Acquired . | . . . . . . Robots Built . | . . . . . . Authchips . | . . . . . . Time . | . . . . . . Total Robot Build Rating . | . . . . . . Part Schematics Acquired . | . . . . . . Parts Built . | . . . . . . Authchips . | . . . . . . Time . | . . . . . . Total Part Build Rating . | . . . . . . Parts Repaired . | . . . . . . Time . | . . . . . . Parts Recycled . | . . . . . . Recycled Matter . | . . . . . . Retrieved Matter . | . . . . . . Retrieved Components . | . . . . . . Parts Scanalyzed . | . . . . . . Part Schematics Acquired . | . . . . . . Parts Damaged . | . . . . . . Bothacking | -11 -10 -10 -10 -9 -8 ------------ Run | Scr Mat Min Exi Min Mat Used RIF Installer . | . . . . . . Robots Hacked . | . . . . . . Non-combat . | . . . . . . Combat . | . . . . . . Robot Hacks Applied . | . . . . . . Relay Couplers Released . | . . . . . . Fabnet Peak Effective % . | . . . . . . Robots Rewired . | . . . . . . Allies Hacked . | . . . . . . Hacks Repelled . | . . . . . . Allies | -11 -10 -10 -10 -9 -8 -------- Run | Scr Mat Min Exi Min Mat Total Allies . | . . . . . . Largest Group . | . . . . . . Highest-Rated Group . | . . . . . . Highest-Rated Ally . | . . . . . . Total Orders . | . . . . . . Ally Attacks . | . . . . . . Total Damage . | . . . . . . Kills . | . . . . . . Allies Corrupted . | . . . . . . Allies Melted . | . . . . . . Intel | -11 -10 -10 -10 -9 -8 ------- Run | Scr Mat Min Exi Min Mat Robot Analysis Total . | . . . . . . Derelict Logs Recovered 3 | . . . . 3 . Drone Launches . | . . . . . . Drone Recoveries . | . . . . . . Exploration | -11 -10 -10 -10 -9 -8 ------------- Run | Scr Mat Min Exi Min Mat Turns Passed 2897 | 262 394 206 714 924 397 Spaces Moved 1946 | 150 297 170 542 641 146 Core 8 | 8 . . . . . Treads 5 | 5 . . . . . Legs . | . . . . . . Wheels 1933 | 137 297 170 542 641 146 Hover . | . . . . . . Flight . | . . . . . . Fastest Speed 50 | 50 95 120 120 135 135 Average Speed 127 | 82 113 120 130 140 145 Slowest Speed 160 | 160 120 120 150 150 150 Overloaded Moves . | . . . . . . Propulsion Burnouts . | . . . . . . Robots Hopped . | . . . . . . Cave-ins Triggered . | . . . . . . Exploration Rate (%) 46 | 7 43 33 82 98 17 Regions Visited 5 Branch Regions 3 Pre-discovered Areas 2 | . . . . 2 . Known Exits Taken 3 | . . 1 1 1 . Unknown Exits Taken 2 | 1 1 . . . . Scrap Searched 2 | . . 1 . 1 . Spaces Dug . | . . . . . . Terrain Destroyed 15 | . . . . 15 . Melee . | . . . . . . Projectile . | . . . . . . AOE 15 | . . . . 15 . Terrain Rammed . | . . . . . . Walls Destroyed . | . . . . . . Machines Disabled . | . . . . . . Actions | -11 -10 -10 -10 -9 -8 --------- Run | Scr Mat Min Exi Min Mat Total 2264 | 224 342 171 551 652 324 Wait 184 | . 16 . . . 168 Move 1941 | 149 296 169 541 640 146 Hop . | . . . . . . Pick Up 27 | 7 11 . 4 2 3 Fast Attach 7 | 6 1 . . . . Attach 4 | 1 . . 1 . 2 Detach 1 | . . . 1 . . Swap 10 | 1 4 2 1 1 1 Drop 9 | . 5 . 3 . 1 Fire 65 | 60 2 . . 3 . Melee 16 | . 7 . . 6 3 Ram . | . . . . . . Kick . | . . . . . . Crush . | . . . . . . Escape Stasis . | . . . . . . Rewire . | . . . . . . Trap . | . . . . . . Miscellaneous . | . . . . . . Route ------- -11/Scrapyard -10/Materials (discovered 2 exits: [*Mat] / [*Min]) -10/Mines -10/Exiles (discovered 2 exits: *Min x2) -9/Mines (discovered 2 exits: *Mat x2) -8/Materials (discovered 1 exit: Fac) History --------- Turn | Location | Event 7 | -11/Scrapyard | Discovered new exit (range 15) 263 | -11/Scrapyard | Entered Materials 337 | -10/Materials | Build established: Mutant 522 | -10/Materials | Discovered new exit (range 8) 602 | -10/Materials | Discovered new exit (range 16) 657 | -10/Materials | Entered Mines 658 | -10/Mines | Assembled infested the area 856 | -10/Mines | Discovered new exit (range 5) 863 | -10/Mines | Identified exit to Exiles 863 | -10/Mines | Entered Exiles 885 | -10/Exiles | Discovered new exit (range 14) 899 | -10/Exiles | Identified exit to Mines 926 | -10/Exiles | Met 8R-AWN 943 | -10/Exiles | Met EX-HEX 976 | -10/Exiles | Met EX-BIN 991 | -10/Exiles | Aligned with FarCom system 992 | -10/Exiles | Given EX-Vault access code 1021 | -10/Exiles | Opened EX-Vault 1028 | -10/Exiles | Found Deploy-a-Sentry 1031 | -10/Exiles | Found Deploy-a-Sentry 1034 | -10/Exiles | Found Deploy-a-Sentry 1060 | -10/Exiles | Warned to stay clear of 0b10 Research branches 1098 | -10/Exiles | Met EX-DEC 1164 | -10/Exiles | Visited The Gauntlet 1562 | -10/Exiles | Discovered exit to Mines (range 12) 1577 | -10/Exiles | Left Exiles lab with Deploy-a-Sentry 1577 | -10/Exiles | Entered Mines 1619 | -9/Mines | Met a Derelict bent on vengeance 1660 | -9/Mines | Discovered new exit (range 10) 1799 | -9/Mines | Learned Materials garrison access intel 1838 | -9/Mines | Discovered new exit (range 5) 1851 | -9/Mines | Learned location of 1 exit from Materials 1866 | -9/Mines | Build established: Assassin 1926 | -9/Mines | Identified exit to Materials 2167 | -9/Mines | Learned location of Storage (-7) 2231 | -9/Mines | Build established: Mutant 2501 | -9/Mines | Entered Materials 2501 | -8/Materials | Evolved 4 slots: Utility x4 2502 | -8/Materials | Identified exit to Factory 2503 | -8/Materials | Loaded intel: 1 garrison access location 2883 | -8/Materials | Build established: Assassin 2898 | -8/Materials | Self-destructed Last Messages --------------- Loading 1 Materials exit... Loading Materials garrison access intel (x1)... 02510_ Acquired Ion Cannon. 02529_ Acquired Hcp. Battery. 02560_ Dropped Lgt. Ion Engine. 02572_ Connecting with Terminal... >>Trojan(Operators) Trojan loaded successfully. Testing... Operator tracking enabled and active. 02596_ Connecting with Scanalyzer... 02668_ Sneak attack on A-02 Transporter. 02739_ Acquired Katana. 02886_ W-25 Informer sends out distress signal. 02889_ Sneak attack on W-25 Informer. 02890_ W-25 Informer sends out distress signal. 02892_ Sneak attack on U-05 Engineer. 02892_ U-05 Engineer destroyed. 02895_ Acquired 20 matter. 02897_ R-06 Scavenger collects Terrain Scanner. Map ----- +----------------------------------------------------+ | ?????????????????????????????????????????????????? | | ??????????????????????????????????????????????o??? | | ?????????????????????????????????????????????????? | | ?????????????????????????????????????????????????? | | ?????????????????????????????????????????????????? | | ?????????????????????????????????????????????????? | | ?????????????????????????????????????????????????? | | ?????????????????????????????????????????????????? | | ?????????????????????????????????????????????????? | | ?????????????????????????????????????????????????? | | ?????????????????????????????????????????????????" | | ???????????????????????????????????l?????????????? | | ?????????????????????????????????????????????????" | | ?????????????????????????????????????????????????? | | ?????????????????????????????????????????????????? | | ???????????????#??#??????????????????????????????? | | ?????????????#?????????##????????????????????????? | | ?????????????????##???## ##??"???????????????????? | | ?????????????????????? #?"????????????????????? | | ????????? ????????????"" #???????????Y??????????? | | ????????????#????#?????" #?????? ???????????????? | | ???????????????#???? ??"Y #???? ? ???????????????? | | ???????????#???#??????? #??????????????????????? | | ??????????????#????# ??? #??""????? ????????????? | | ????????? ???##??########/#?? ???????????????????? | | ?????????? t r r@#??#?#?????????????????? | | ????????????????######### ###?#????#?????????????? | | ???????????#?#????#?????#!########?#?????????????? | | ???????? ?????#??#?????##= w ????????? | | ??????? ??????########?## ########?#?????????????? | | ??????????????# #### # #??????????????? | | ?????????#????# + + """????????????????? | | ?????? ???#??## # # """ H w????????????? | | ??????????#???# # #?? ??? ?#?????????????? | | ?????????????## # # ??? ??#?????????????? | | ????????????#?# # ####????#??????????????? | | ????????? ????#####+## #? ????????????????????? | | ?? ???? ? ??????### #??????? ??????????????? | | ????? ?????#???##?# ##### #?????? ???????????????? | | ????????? ????????# #???? #????? ? ??????????????? | | ???????? ? ??#????# ##?#? #???#??#???????????????? | | ???????????###??#?# ##?## #?#????????????????????? | | ??????##?????#????# #?#?# #???#??????????????????? | | ??????????????#??## #?#?# #??#???????????????????? | | ????????????#?????# #??#? ???????????????????????? | | ???????????###??#?# ##??# ???#???????????????????? | | ???????????# ???# #??##+######?????????????????? | | ???????????# ???# #??# ##????????????????? | | ???????#???# ### ####% "" #?????????????????? | | ????????#??# # ## """ #?????????????????? | +----------------------------------------------------+ Best States ------------- Heat Dissipation 31 Energy Generation 10 Energy Capacity 125 Matter Stores 300 Matter Capacity 300 Sight Range 16 Terrain Scan Range 16 Terrain Scan Density 10 Evasion (%) 44 Recoil Reduction 1 Item Schematics ----------------- None Robot Schematics ------------------ None Fabricated ------------ Nothing Alien Tech Used ----------------- None Achievements -------------- None Challenges ------------ None Game ------ Seed CloakingMetafiberPenetrator Manual? 0 Play Time 00:23:49 Cumulative 32.5 hours Start 2022.05.09 @ 20:23:38 End 2022.05.10 @ 06:58:17 Sessions 3 Manual Loads 0 Difficulty Rogue Special Mode None Game No. 11 Rogue 10 Adventurer 0 Explorer 1 Win Type - Total 0 Types 0/0/0/0/0/0/0/0/0 Lore% 16 Gallery% 28 Achievement% 32 Wizard Run 0 Options --------- ASCII 0 Keyboard 0 Movement Numpad Keybinds 0 Fullscreen 1 Font 18/SmallcapsGlow Map View 76x50 Tactical HUD 1 Map Filters NONE Filters NONE Steam 1 RUN: e7fb203f-360b-4796-9096-9080303125a6